[Event "Titled Tuesday Blitz March 21 Late 2023"]
[White "Astafurov, Arseniy"]
[Black "Timmermans, Mark"]
[WhiteFideId "24175218"]
[BlackFideId "1026399"]
[WhiteElo "2163"]
[BlackElo "2460"]
[Result "1/2-1/2"]
[Round "05"]
[TimeControl "180+2"]
[Date "2023.03.21"]
[WhiteClock "0:00:07"]
[BlackClock "0:00:58"]

1. c4 {[%clk 0:02:58]}  e6 {[%clk 0:02:58]} 2. Nf3 {[%clk 0:02:58]}  d5 {[%clk 0:02:57]} 3. g3 {[%clk 0:02:59]}  Nf6 {[%clk 0:02:54]} 4. Bg2 {[%clk 0:03:00]}  Be7 {[%clk 0:02:55]} 5. O-O {[%clk 0:03:00]}  O-O {[%clk 0:02:55]} 6. b3 {[%clk 0:03:00]}  c5 {[%clk 0:02:56]} 7. cxd5 {[%clk 0:03:01]}  Nxd5 {[%clk 0:02:54]} 8. Bb2 {[%clk 0:03:00]}  b6 {[%clk 0:02:54]} 9. d4 {[%clk 0:02:57]}  Bb7 {[%clk 0:02:54]} 10. Nc3 {[%clk 0:02:42]}  Nxc3 {[%clk 0:02:53]} 11. Bxc3 {[%clk 0:02:43]}  Nd7 {[%clk 0:02:42]} 12. Rc1 {[%clk 0:02:34]}  Rc8 {[%clk 0:02:39]} 13. Bb2 {[%clk 0:01:37]}  h6 {[%clk 0:02:25]} 14. Qd2 {[%clk 0:01:20]}  Bf6 {[%clk 0:02:25]} 15. Rfd1 {[%clk 0:01:18]}  cxd4 {[%clk 0:02:15]} 16. Bxd4 {[%clk 0:01:16]}  Rxc1 {[%clk 0:02:12]} 17. Rxc1 {[%clk 0:01:16]}  Bxf3 {[%clk 0:01:57]} 18. Bxf6 {[%clk 0:01:10]}  Nxf6 {[%clk 0:01:55]} 19. Qxd8 {[%clk 0:01:09]}  Rxd8 {[%clk 0:01:56]} 20. Bxf3 {[%clk 0:01:10]}  Rd2 {[%clk 0:01:57]} 21. Rc8+ {[%clk 0:00:54]}  Kh7 {[%clk 0:01:56]} 22. Rc7 {[%clk 0:00:46]}  Rxa2 {[%clk 0:01:54]} 23. Rxf7 {[%clk 0:00:47]}  Nd5 {[%clk 0:01:41]} 24. Rd7 {[%clk 0:00:32]}  Kg6 {[%clk 0:01:38]} 25. Bxd5 {[%clk 0:00:30]}  exd5 {[%clk 0:01:38]} 26. Rxd5 {[%clk 0:00:31]}  Rxe2 {[%clk 0:01:38]} 27. Rd7 {[%clk 0:00:26]}  Ra2 {[%clk 0:01:38]} 28. Rb7 {[%clk 0:00:26]}  Ra3 {[%clk 0:01:36]} 29. b4 {[%clk 0:00:25]}  Ra4 {[%clk 0:01:33]} 30. b5 {[%clk 0:00:26]}  Ra5 {[%clk 0:01:34]} 31. h4 {[%clk 0:00:25]}  Kf6 {[%clk 0:01:33]} 32. Kg2 {[%clk 0:00:25]}  g5 {[%clk 0:01:32]} 33. hxg5+ {[%clk 0:00:23]}  hxg5 {[%clk 0:01:32]} 34. Kf3 {[%clk 0:00:23]}  Kf5 {[%clk 0:01:31]} 35. Rf7+ {[%clk 0:00:22]}  Ke6 {[%clk 0:01:30]} 36. Rg7 {[%clk 0:00:21]}  Kf6 {[%clk 0:01:21]} 37. Rb7 {[%clk 0:00:21]}  Ra4 {[%clk 0:01:22]} 38. Rb8 {[%clk 0:00:19]}  g4+ {[%clk 0:01:21]} 39. Kg2 {[%clk 0:00:19]}  Ke5 {[%clk 0:01:20]} 40. Rg8 {[%clk 0:00:19]}  Kd5 {[%clk 0:01:20]} 41. Rg5+ {[%clk 0:00:17]}  Ke6 {[%clk 0:01:20]} 42. Rh5 {[%clk 0:00:18]}  Rb4 {[%clk 0:01:20]} 43. Kf1 {[%clk 0:00:18]}  Kf6 {[%clk 0:01:14]} 44. Ke2 {[%clk 0:00:18]}  Kg6 {[%clk 0:01:11]} 45. Rd5 {[%clk 0:00:17]}  Rb2+ {[%clk 0:01:11]} 46. Ke3 {[%clk 0:00:18]}  Rb3+ {[%clk 0:01:11]} 47. Ke2 {[%clk 0:00:18]}  Kf6 {[%clk 0:01:10]} 48. Rh5 {[%clk 0:00:17]}  Ra3 {[%clk 0:01:08]} 49. Rd5 {[%clk 0:00:15]}  Ke6 {[%clk 0:01:07]} 50. Rg5 {[%clk 0:00:15]}  Ra4 {[%clk 0:01:05]} 51. Ke3 {[%clk 0:00:15]}  Kf6 {[%clk 0:01:05]} 52. Rh5 {[%clk 0:00:16]}  Ra3+ {[%clk 0:01:04]} 53. Ke2 {[%clk 0:00:16]}  Kg6 {[%clk 0:01:04]} 54. Rd5 {[%clk 0:00:16]}  Rf3 {[%clk 0:00:57]} 55. Rd7 {[%clk 0:00:15]}  Rf5 {[%clk 0:00:57]} 56. Rxa7 {[%clk 0:00:15]}  Rxb5 {[%clk 0:00:57]} 57. Rb7 {[%clk 0:00:15]}  Kf5 {[%clk 0:00:56]} 58. Rb8 {[%clk 0:00:15]}  Rb2+ {[%clk 0:00:56]} 59. Ke3 {[%clk 0:00:15]}  Rb3+ {[%clk 0:00:57]} 60. Ke2 {[%clk 0:00:16]}  b5 {[%clk 0:00:57]} 61. Rf8+ {[%clk 0:00:15]}  Kg6 {[%clk 0:00:57]} 62. Rg8+ {[%clk 0:00:13]}  Kf5 {[%clk 0:00:57]} 63. Rf8+ {[%clk 0:00:14]}  Ke6 {[%clk 0:00:58]} 64. Rf4 {[%clk 0:00:13]}  Rb2+ {[%clk 0:00:56]} 65. Kf1 {[%clk 0:00:13]}  b4 {[%clk 0:00:56]} 66. Rxg4 {[%clk 0:00:13]}  b3 {[%clk 0:00:57]} 67. Rb4 {[%clk 0:00:14]}  Rb1+ {[%clk 0:00:58]} 68. Kg2 {[%clk 0:00:14]}  b2 {[%clk 0:00:58]} 69. Rb8 {[%clk 0:00:15]}  Kf7 {[%clk 0:00:58]} 70. g4 {[%clk 0:00:15]}  Kf6 {[%clk 0:00:57]} 71. f4 {[%clk 0:00:15]}  Ke6 {[%clk 0:00:57]} 72. Rb6+ {[%clk 0:00:14]}  Kd5 {[%clk 0:00:57]} 73. f5 {[%clk 0:00:11]}  Ke5 {[%clk 0:00:57]} 74. Rb5+ {[%clk 0:00:09]}  Kf6 {[%clk 0:00:57]} 75. Rb4 {[%clk 0:00:07]}  Kg5 {[%clk 0:00:57]} 76. Kh2 {[%clk 0:00:08]}  Kf6 {[%clk 0:00:57]} 77. Kg2 {[%clk 0:00:08]}  Kg5 {[%clk 0:00:57]} 78. Kh2 {[%clk 0:00:08]}  Kf6 {[%clk 0:00:58]} 79. Kg2 {[%clk 0:00:07]} 1/2-1/2


[Site "https://www.chess.com"]

[Event "Titled Tuesday Blitz March 21 Late 2023"]
[White "Tanenbaum, Zachary"]
[Black "Kubatko, Ivan"]
[WhiteFideId "2060850"]
[BlackFideId "24111473"]
[WhiteElo "2175"]
[BlackElo "2285"]
[Result "1-0"]
[Round "05"]
[TimeControl "180+2"]
[Date "2023.03.21"]
[WhiteClock "0:01:15"]
[BlackClock "0:00:01"]

1. e4 {[%clk 0:03:00]}  d5 {[%clk 0:02:58]} 2. exd5 {[%clk 0:03:01]}  Qxd5 {[%clk 0:02:51]} 3. Nc3 {[%clk 0:03:02]}  Qa5 {[%clk 0:02:50]} 4. d4 {[%clk 0:03:03]}  Nf6 {[%clk 0:02:51]} 5. Nf3 {[%clk 0:03:02]}  Bg4 {[%clk 0:02:50]} 6. Bd2 {[%clk 0:02:55]}  c6 {[%clk 0:02:50]} 7. Be2 {[%clk 0:02:53]}  e6 {[%clk 0:02:49]} 8. h3 {[%clk 0:02:48]}  Bh5 {[%clk 0:02:48]} 9. Ne4 {[%clk 0:02:43]}  Qb6 {[%clk 0:02:22]} 10. Nxf6+ {[%clk 0:02:42]}  gxf6 {[%clk 0:02:22]} 11. O-O {[%clk 0:02:30]}  Nd7 {[%clk 0:02:00]} 12. b4 {[%clk 0:02:25]}  Bxf3 {[%clk 0:01:19]} 13. Bxf3 {[%clk 0:02:26]}  Qxd4 {[%clk 0:01:19]} 14. b5 {[%clk 0:02:22]}  Ne5 {[%clk 0:01:15]} 15. bxc6 {[%clk 0:02:18]}  bxc6 {[%clk 0:01:07]} 16. Qe2 {[%clk 0:02:18]}  Nxf3+ {[%clk 0:00:52]} 17. Qxf3 {[%clk 0:02:18]}  Qd5 {[%clk 0:00:52]} 18. Qe2 {[%clk 0:02:12]}  Rg8 {[%clk 0:00:49]} 19. f4 {[%clk 0:02:08]}  Bc5+ {[%clk 0:00:48]} 20. Kh1 {[%clk 0:02:06]}  Rg3 {[%clk 0:00:42]} 21. Kh2 {[%clk 0:02:04]}  Rg6 {[%clk 0:00:23]} 22. f5 {[%clk 0:01:58]}  Bd6+ {[%clk 0:00:23]} 23. Bf4 {[%clk 0:01:57]}  Rg8 {[%clk 0:00:10]} 24. fxe6 {[%clk 0:01:56]}  fxe6 {[%clk 0:00:09]} 25. Rad1 {[%clk 0:01:55]}  Bxf4+ {[%clk 0:00:08]} 26. Rxf4 {[%clk 0:01:55]}  Qe5 {[%clk 0:00:07]} 27. Qf3 {[%clk 0:01:55]}  Ke7 {[%clk 0:00:02]} 28. Rd2 {[%clk 0:01:48]}  Rad8 {[%clk 0:00:03]} 29. Re2 {[%clk 0:01:49]}  Qd6 {[%clk 0:00:02]} 30. Qe3 {[%clk 0:01:44]}  Rdf8 {[%clk 0:00:02]} 31. Qxa7+ {[%clk 0:01:43]}  Qd7 {[%clk 0:00:03]} 32. Qe3 {[%clk 0:01:32]}  e5 {[%clk 0:00:03]} 33. Rd2 {[%clk 0:01:29]}  Qe6 {[%clk 0:00:02]} 34. Rh4 {[%clk 0:01:26]}  Rg7 {[%clk 0:00:02]} 35. Qc5+ {[%clk 0:01:23]}  Kf7 {[%clk 0:00:02]} 36. Rd6 {[%clk 0:01:21]}  Qe7 {[%clk 0:00:02]} 37. Qc4+ {[%clk 0:01:19]}  Ke8 {[%clk 0:00:02]} 38. Qxc6+ {[%clk 0:01:19]}  Kf7 {[%clk 0:00:02]} 39. Rd7 {[%clk 0:01:18]}  Rfg8 {[%clk 0:00:02]} 40. Rxe7+ {[%clk 0:01:17]}  Kxe7 {[%clk 0:00:03]} 41. Rxh7 {[%clk 0:01:15]}  Rxh7 {[%clk 0:00:01]} 42. Qc7+ {[%clk 0:01:15]} 1-0


[Site "https://www.chess.com"]

[Event "Titled Tuesday Blitz March 21 Late 2023"]
[White "Jovic, Stanoje"]
[Black "Kuznetsov, Felix"]
[WhiteFideId "905020"]
[BlackFideId "34147990"]
[WhiteElo "2236"]
[BlackElo "2235"]
[Result "1/2-1/2"]
[Round "05"]
[TimeControl "180+2"]
[Date "2023.03.21"]
[WhiteClock "0:00:03"]
[BlackClock "0:00:10"]

1. c4 {[%clk 0:03:00]}  e6 {[%clk 0:02:59]} 2. g3 {[%clk 0:03:01]}  Nf6 {[%clk 0:02:59]} 3. Bg2 {[%clk 0:03:01]}  d5 {[%clk 0:02:59]} 4. Nf3 {[%clk 0:03:01]}  Be7 {[%clk 0:02:54]} 5. O-O {[%clk 0:03:01]}  O-O {[%clk 0:02:54]} 6. b3 {[%clk 0:03:01]}  b6 {[%clk 0:02:54]} 7. Bb2 {[%clk 0:03:00]}  Bb7 {[%clk 0:02:53]} 8. Ne5 {[%clk 0:02:58]}  Nbd7 {[%clk 0:02:51]} 9. d4 {[%clk 0:02:58]}  Qc8 {[%clk 0:02:37]} 10. e3 {[%clk 0:02:53]}  Rd8 {[%clk 0:02:24]} 11. Nd2 {[%clk 0:02:43]}  Nxe5 {[%clk 0:02:14]} 12. dxe5 {[%clk 0:02:43]}  Nd7 {[%clk 0:02:11]} 13. cxd5 {[%clk 0:02:41]}  Bxd5 {[%clk 0:02:06]} 14. Bxd5 {[%clk 0:02:39]}  exd5 {[%clk 0:02:07]} 15. Rc1 {[%clk 0:02:37]}  Qb7 {[%clk 0:02:02]} 16. Qg4 {[%clk 0:02:29]}  Nf8 {[%clk 0:02:00]} 17. Nf3 {[%clk 0:02:21]}  c5 {[%clk 0:01:54]} 18. Rfd1 {[%clk 0:02:14]}  Ne6 {[%clk 0:01:50]} 19. Nh4 {[%clk 0:02:12]}  Bxh4 {[%clk 0:01:36]} 20. Qxh4 {[%clk 0:02:12]}  Rd7 {[%clk 0:01:20]} 21. f4 {[%clk 0:02:12]}  h6 {[%clk 0:01:19]} 22. Qg4 {[%clk 0:02:04]}  d4 {[%clk 0:01:11]} 23. exd4 {[%clk 0:02:03]}  cxd4 {[%clk 0:01:10]} 24. h4 {[%clk 0:01:57]}  Rad8 {[%clk 0:01:03]} 25. f5 {[%clk 0:01:54]}  Nc5 {[%clk 0:00:58]} 26. e6 {[%clk 0:01:38]}  fxe6 {[%clk 0:00:50]} 27. fxe6 {[%clk 0:01:38]}  Re7 {[%clk 0:00:50]} 28. Rxd4 {[%clk 0:01:33]}  Rxd4 {[%clk 0:00:42]} 29. Bxd4 {[%clk 0:01:33]}  Nxe6 {[%clk 0:00:40]} 30. Bb2 {[%clk 0:01:23]}  Nc5 {[%clk 0:00:36]} 31. b4 {[%clk 0:01:20]}  Qe4 {[%clk 0:00:18]} 32. Qxe4 {[%clk 0:01:07]}  Nxe4 {[%clk 0:00:18]} 33. Re1 {[%clk 0:01:05]}  Kf7 {[%clk 0:00:18]} 34. Kg2 {[%clk 0:01:03]}  g6 {[%clk 0:00:17]} 35. b5 {[%clk 0:01:02]}  h5 {[%clk 0:00:16]} 36. Re2 {[%clk 0:00:54]}  Nd6 {[%clk 0:00:15]} 37. Rxe7+ {[%clk 0:00:52]}  Kxe7 {[%clk 0:00:16]} 38. a4 {[%clk 0:00:47]}  Ne4 {[%clk 0:00:17]} 39. Kf3 {[%clk 0:00:44]}  Nc5 {[%clk 0:00:17]} 40. Ba3 {[%clk 0:00:44]}  Kd6 {[%clk 0:00:16]} 41. Kf4 {[%clk 0:00:44]}  Kd5 {[%clk 0:00:16]} 42. Kg5 {[%clk 0:00:41]}  Nxa4 {[%clk 0:00:14]} 43. Kxg6 {[%clk 0:00:42]}  Nc3 {[%clk 0:00:14]} 44. Kxh5 {[%clk 0:00:41]}  Nxb5 {[%clk 0:00:15]} 45. Bb2 {[%clk 0:00:39]}  a5 {[%clk 0:00:15]} 46. g4 {[%clk 0:00:39]}  a4 {[%clk 0:00:15]} 47. g5 {[%clk 0:00:39]}  a3 {[%clk 0:00:16]} 48. Ba1 {[%clk 0:00:39]}  Nd4 {[%clk 0:00:15]} 49. g6 {[%clk 0:00:37]}  Ne6 {[%clk 0:00:10]} 50. Kg4 {[%clk 0:00:32]}  b5 {[%clk 0:00:10]} 51. h5 {[%clk 0:00:32]}  b4 {[%clk 0:00:11]} 52. h6 {[%clk 0:00:33]}  b3 {[%clk 0:00:11]} 53. h7 {[%clk 0:00:30]}  b2 {[%clk 0:00:11]} 54. h8=Q {[%clk 0:00:27]}  b1=Q {[%clk 0:00:10]} 55. Qa8+ {[%clk 0:00:27]}  Kc4 {[%clk 0:00:06]} 56. Qc8+ {[%clk 0:00:21]}  Nc5 {[%clk 0:00:06]} 57. Qg8+ {[%clk 0:00:18]}  Kd3 {[%clk 0:00:03]} 58. Qd5+ {[%clk 0:00:17]}  Ke2 {[%clk 0:00:03]} 59. Qxc5 {[%clk 0:00:17]}  Qxa1 {[%clk 0:00:03]} 60. Qe7+ {[%clk 0:00:16]}  Kd3 {[%clk 0:00:02]} 61. g7 {[%clk 0:00:15]}  Qg1+ {[%clk 0:00:02]} 62. Kf5 {[%clk 0:00:16]}  a2 {[%clk 0:00:01]} 63. Qd8+ {[%clk 0:00:14]}  Kc2 {[%clk 0:00:02]} 64. Qc7+ {[%clk 0:00:13]}  Kb2 {[%clk 0:00:02]} 65. Qb7+ {[%clk 0:00:13]}  Ka1 {[%clk 0:00:03]} 66. Qa8 {[%clk 0:00:11]}  Qf1+ {[%clk 0:00:02]} 67. Ke6 {[%clk 0:00:11]}  Qg1 {[%clk 0:00:03]} 68. Kf7 {[%clk 0:00:11]}  Qf2+ {[%clk 0:00:03]} 69. Kg8 {[%clk 0:00:11]}  Qg3 {[%clk 0:00:03]} 70. Qd5 {[%clk 0:00:08]}  Kb2 {[%clk 0:00:03]} 71. Qd4+ {[%clk 0:00:08]}  Kb1 {[%clk 0:00:03]} 72. Qb6+ {[%clk 0:00:07]}  Kc2 {[%clk 0:00:04]} 73. Qc6+ {[%clk 0:00:06]}  Kb2 {[%clk 0:00:04]} 74. Qb6+ {[%clk 0:00:06]}  Qb3+ {[%clk 0:00:04]} 75. Qxb3+ {[%clk 0:00:06]}  Kxb3 {[%clk 0:00:05]} 76. Kf8 {[%clk 0:00:06]}  a1=Q {[%clk 0:00:06]} 77. g8=Q+ {[%clk 0:00:07]}  Kb2 {[%clk 0:00:05]} 78. Qg7+ {[%clk 0:00:07]}  Kb1 {[%clk 0:00:05]} 79. Qg6+ {[%clk 0:00:07]}  Kb2 {[%clk 0:00:05]} 80. Qf6+ {[%clk 0:00:07]}  Ka2 {[%clk 0:00:06]} 81. Qa6+ {[%clk 0:00:07]}  Kb1 {[%clk 0:00:06]} 82. Qd3+ {[%clk 0:00:07]}  Kb2 {[%clk 0:00:07]} 83. Qd2+ {[%clk 0:00:07]}  Kb1 {[%clk 0:00:07]} 84. Qd1+ {[%clk 0:00:08]}  Ka2 {[%clk 0:00:07]} 85. Qd5+ {[%clk 0:00:08]}  Kb1 {[%clk 0:00:08]} 86. Qf5+ {[%clk 0:00:07]}  Kb2 {[%clk 0:00:08]} 87. Qf6+ {[%clk 0:00:06]}  Ka2 {[%clk 0:00:08]} 88. Qf7+ {[%clk 0:00:06]}  Kb1 {[%clk 0:00:08]} 89. Qh7+ {[%clk 0:00:06]}  Kc1 {[%clk 0:00:07]} 90. Qh1+ {[%clk 0:00:06]}  Kb2 {[%clk 0:00:08]} 91. Qg2+ {[%clk 0:00:05]}  Ka3 {[%clk 0:00:08]} 92. Qa8+ {[%clk 0:00:05]}  Kb2 {[%clk 0:00:08]} 93. Qb7+ {[%clk 0:00:05]}  Kc1 {[%clk 0:00:09]} 94. Qh1+ {[%clk 0:00:05]}  Kb2 {[%clk 0:00:09]} 95. Qg2+ {[%clk 0:00:05]}  Ka3 {[%clk 0:00:09]} 96. Qg3+ {[%clk 0:00:04]}  Ka2 {[%clk 0:00:09]} 97. Qg8+ {[%clk 0:00:04]}  Kb1 {[%clk 0:00:09]} 98. Qh7+ {[%clk 0:00:03]}  Ka2 {[%clk 0:00:10]} 99. Qa7+ {[%clk 0:00:02]}  Kb1 {[%clk 0:00:10]} 100. Qxa1+ {[%clk 0:00:03]}  Kxa1 {[%clk 0:00:10]} 1/2-1/2


[Site "https://www.chess.com"]

[Event "Titled Tuesday Blitz March 21 Late 2023"]
[White "victormago"]
[Black "Adewumi, Tanitoluwa"]
[BlackFideId "30966396"]
[WhiteElo "2420"]
[BlackElo "2761"]
[Result "0-1"]
[Round "05"]
[TimeControl "180+2"]
[Date "2023.03.21"]
[WhiteClock "0:00:10"]
[BlackClock "0:00:09"]

1. d4 {[%clk 0:03:00]}  Nf6 {[%clk 0:02:57]} 2. c4 {[%clk 0:03:00]}  e6 {[%clk 0:02:57]} 3. Nc3 {[%clk 0:03:01]}  Bb4 {[%clk 0:02:55]} 4. Qc2 {[%clk 0:03:01]}  O-O {[%clk 0:02:55]} 5. Nf3 {[%clk 0:03:01]}  c5 {[%clk 0:02:54]} 6. dxc5 {[%clk 0:03:00]}  Na6 {[%clk 0:02:55]} 7. g3 {[%clk 0:02:56]}  Nxc5 {[%clk 0:02:52]} 8. Bg2 {[%clk 0:02:57]}  b6 {[%clk 0:02:49]} 9. O-O {[%clk 0:02:52]}  Bxc3 {[%clk 0:02:45]} 10. Qxc3 {[%clk 0:02:52]}  Bb7 {[%clk 0:02:46]} 11. b3 {[%clk 0:02:52]}  d5 {[%clk 0:02:45]} 12. cxd5 {[%clk 0:02:47]}  Nxd5 {[%clk 0:02:45]} 13. Qb2 {[%clk 0:02:46]}  Rc8 {[%clk 0:02:43]} 14. Rd1 {[%clk 0:02:34]}  Qe7 {[%clk 0:02:39]} 15. Nd4 {[%clk 0:02:21]}  Rfd8 {[%clk 0:02:35]} 16. Bd2 {[%clk 0:02:08]}  Qf6 {[%clk 0:02:27]} 17. Be1 {[%clk 0:02:07]}  e5 {[%clk 0:02:13]} 18. Nb5 {[%clk 0:01:59]}  a6 {[%clk 0:01:32]} 19. Na3 {[%clk 0:01:57]}  b5 {[%clk 0:01:13]} 20. Rac1 {[%clk 0:01:55]}  h6 {[%clk 0:01:09]} 21. Nc2 {[%clk 0:01:55]}  Ne6 {[%clk 0:01:05]} 22. Nb4 {[%clk 0:01:45]}  Rxc1 {[%clk 0:00:56]} 23. Rxc1 {[%clk 0:01:39]}  Nd4 {[%clk 0:00:55]} 24. Nxd5 {[%clk 0:01:29]}  Bxd5 {[%clk 0:00:54]} 25. Bxd5 {[%clk 0:01:29]}  Rxd5 {[%clk 0:00:55]} 26. Bc3 {[%clk 0:01:21]}  Ne6 {[%clk 0:00:46]} 27. e3 {[%clk 0:01:14]}  Ng5 {[%clk 0:00:38]} 28. Qe2 {[%clk 0:01:06]}  Qf5 {[%clk 0:00:33]} 29. h4 {[%clk 0:00:58]}  Nf3+ {[%clk 0:00:27]} 30. Kg2 {[%clk 0:00:58]}  e4 {[%clk 0:00:28]} 31. Rd1 {[%clk 0:00:52]}  Rc5 {[%clk 0:00:18]} 32. Bb4 {[%clk 0:00:44]}  Qg4 {[%clk 0:00:11]} 33. Bxc5 {[%clk 0:00:35]}  Nxh4+ {[%clk 0:00:11]} 34. Kf1 {[%clk 0:00:35]}  Qh3+ {[%clk 0:00:10]} 35. Ke1 {[%clk 0:00:36]}  Nf3+ {[%clk 0:00:09]} 36. Qxf3 {[%clk 0:00:30]}  exf3 {[%clk 0:00:10]} 37. Kd2 {[%clk 0:00:15]}  Qh2 {[%clk 0:00:10]} 38. e4 {[%clk 0:00:14]}  Qh5 {[%clk 0:00:10]} 39. Be3 {[%clk 0:00:12]}  Qe5 {[%clk 0:00:10]} 40. Kd3 {[%clk 0:00:10]}  Qb2 {[%clk 0:00:10]} 41. Rd2 {[%clk 0:00:10]}  Qb1+ {[%clk 0:00:11]} 42. Kd4 {[%clk 0:00:10]}  f6 {[%clk 0:00:09]} 0-1


[Site "https://www.chess.com"]

[Event "Titled Tuesday Blitz March 21 Late 2023"]
[White "Naroditsky, Daniel"]
[Black "Matinian, Nikita"]
[WhiteFideId "2026961"]
[BlackFideId "24129100"]
[WhiteElo "2633"]
[BlackElo "2422"]
[Result "1-0"]
[Round "05"]
[TimeControl "180+2"]
[Date "2023.03.21"]
[WhiteClock "0:01:03"]
[BlackClock "0:00:05"]

1. d4 {[%clk 0:03:00]}  Nf6 {[%clk 0:02:59]} 2. Nc3 {[%clk 0:02:59]}  d5 {[%clk 0:02:59]} 3. Bf4 {[%clk 0:02:59]}  g6 {[%clk 0:02:57]} 4. e3 {[%clk 0:02:59]}  Bg7 {[%clk 0:02:56]} 5. h4 {[%clk 0:03:00]}  h5 {[%clk 0:02:56]} 6. Nf3 {[%clk 0:03:00]}  c6 {[%clk 0:02:56]} 7. Ne5 {[%clk 0:02:58]}  Nbd7 {[%clk 0:02:52]} 8. Bd3 {[%clk 0:02:58]}  Qb6 {[%clk 0:02:38]} 9. Rb1 {[%clk 0:02:56]}  a5 {[%clk 0:02:37]} 10. a4 {[%clk 0:02:54]}  Nxe5 {[%clk 0:02:32]} 11. Bxe5 {[%clk 0:02:55]}  Be6 {[%clk 0:02:28]} 12. Qf3 {[%clk 0:02:53]}  O-O {[%clk 0:02:26]} 13. Qf4 {[%clk 0:02:48]}  Rac8 {[%clk 0:02:09]} 14. f3 {[%clk 0:02:47]}  c5 {[%clk 0:02:04]} 15. g4 {[%clk 0:02:48]}  cxd4 {[%clk 0:01:56]} 16. Bxd4 {[%clk 0:02:45]}  Qb4 {[%clk 0:01:54]} 17. Kf2 {[%clk 0:02:36]}  Rfd8 {[%clk 0:01:12]} 18. Rhg1 {[%clk 0:02:23]}  hxg4 {[%clk 0:01:11]} 19. fxg4 {[%clk 0:02:15]}  Ne4+ {[%clk 0:01:06]} 20. Nxe4 {[%clk 0:02:09]}  dxe4 {[%clk 0:00:56]} 21. c3 {[%clk 0:02:09]}  Qxa4 {[%clk 0:00:35]} 22. Bxe4 {[%clk 0:02:09]}  Bxd4 {[%clk 0:00:33]} 23. exd4 {[%clk 0:02:09]}  Bd5 {[%clk 0:00:25]} 24. Bd3 {[%clk 0:02:01]}  Bc4 {[%clk 0:00:20]} 25. Be4 {[%clk 0:01:44]}  Bd5 {[%clk 0:00:19]} 26. Rbe1 {[%clk 0:01:41]}  e5 {[%clk 0:00:18]} 27. Qxe5 {[%clk 0:01:38]}  Bxe4 {[%clk 0:00:15]} 28. Qxe4 {[%clk 0:01:33]}  Qb5 {[%clk 0:00:11]} 29. Qe2 {[%clk 0:01:26]}  Qb3 {[%clk 0:00:11]} 30. h5 {[%clk 0:01:25]}  Rxd4 {[%clk 0:00:11]} 31. h6 {[%clk 0:01:06]}  Rd7 {[%clk 0:00:05]} 32. Qe5 {[%clk 0:01:02]}  Qxb2+ {[%clk 0:00:05]} 33. Re2 {[%clk 0:01:02]}  Qxc3 {[%clk 0:00:05]} 34. h7+ {[%clk 0:01:03]} 1-0


[Site "https://www.chess.com"]

[Event "Titled Tuesday Blitz March 21 Late 2023"]
[White "Ibarra Jerez, Jose Carlos"]
[Black "Krallis, Christos"]
[WhiteFideId "2226332"]
[BlackFideId "4298896"]
[WhiteElo "2638"]
[BlackElo "2243"]
[Result "1-0"]
[Round "05"]
[TimeControl "180+2"]
[Date "2023.03.21"]
[WhiteClock "0:00:12"]
[BlackClock "0:00:05"]

1. e4 {[%clk 0:03:00]}  c5 {[%clk 0:02:58]} 2. Nc3 {[%clk 0:03:00]}  e6 {[%clk 0:02:57]} 3. Nge2 {[%clk 0:03:00]}  Nc6 {[%clk 0:02:54]} 4. d4 {[%clk 0:03:01]}  cxd4 {[%clk 0:02:55]} 5. Nxd4 {[%clk 0:03:01]}  d6 {[%clk 0:02:47]} 6. Be3 {[%clk 0:03:01]}  Be7 {[%clk 0:02:46]} 7. f3 {[%clk 0:03:01]}  Nf6 {[%clk 0:02:45]} 8. Qd2 {[%clk 0:03:01]}  O-O {[%clk 0:02:43]} 9. O-O-O {[%clk 0:03:01]}  a6 {[%clk 0:02:34]} 10. g3 {[%clk 0:03:01]}  Bd7 {[%clk 0:02:15]} 11. g4 {[%clk 0:03:01]}  Rc8 {[%clk 0:02:10]} 12. Kb1 {[%clk 0:03:01]}  b5 {[%clk 0:02:03]} 13. Nxc6 {[%clk 0:03:01]}  Bxc6 {[%clk 0:02:01]} 14. Bd3 {[%clk 0:03:02]}  d5 {[%clk 0:01:55]} 15. e5 {[%clk 0:03:01]}  Nd7 {[%clk 0:01:55]} 16. Bd4 {[%clk 0:03:01]}  b4 {[%clk 0:01:44]} 17. Ne2 {[%clk 0:03:00]}  Bb5 {[%clk 0:01:45]} 18. f4 {[%clk 0:02:55]}  Nc5 {[%clk 0:01:28]} 19. h4 {[%clk 0:02:43]}  Ne4 {[%clk 0:01:23]} 20. Qe3 {[%clk 0:02:42]}  Qc7 {[%clk 0:01:04]} 21. f5 {[%clk 0:02:37]}  Bc5 {[%clk 0:00:31]} 22. Nf4 {[%clk 0:01:25]}  Qxe5 {[%clk 0:00:29]} 23. Bxc5 {[%clk 0:01:18]}  Rxc5 {[%clk 0:00:27]} 24. Rhe1 {[%clk 0:01:06]}  Rfc8 {[%clk 0:00:23]} 25. fxe6 {[%clk 0:01:01]}  fxe6 {[%clk 0:00:23]} 26. Bxe4 {[%clk 0:00:35]}  dxe4 {[%clk 0:00:21]} 27. Rd2 {[%clk 0:00:34]}  Ba4 {[%clk 0:00:13]} 28. b3 {[%clk 0:00:29]}  Bc6 {[%clk 0:00:14]} 29. Nd3 {[%clk 0:00:28]}  exd3 {[%clk 0:00:12]} 30. Qxe5 {[%clk 0:00:28]}  Rxe5 {[%clk 0:00:07]} 31. Rxe5 {[%clk 0:00:29]}  Bd5 {[%clk 0:00:05]} 32. Rxd3 {[%clk 0:00:26]}  Kf7 {[%clk 0:00:06]} 33. Rd4 {[%clk 0:00:22]}  a5 {[%clk 0:00:05]} 34. Rf4+ {[%clk 0:00:19]}  Ke7 {[%clk 0:00:05]} 35. Re3 {[%clk 0:00:20]}  Kd6 {[%clk 0:00:05]} 36. Rf7 {[%clk 0:00:19]}  Rg8 {[%clk 0:00:02]} 37. Ra7 {[%clk 0:00:19]}  h5 {[%clk 0:00:01]} 38. g5 {[%clk 0:00:18]}  Kc5 {[%clk 0:00:02]} 39. Rxa5+ {[%clk 0:00:18]}  Kd4 {[%clk 0:00:03]} 40. Rd3+ {[%clk 0:00:17]}  Ke4 {[%clk 0:00:04]} 41. Rb5 {[%clk 0:00:17]}  Rf8 {[%clk 0:00:04]} 42. Rxb4+ {[%clk 0:00:17]}  Ke5 {[%clk 0:00:05]} 43. Rb5 {[%clk 0:00:15]}  Rf1+ {[%clk 0:00:06]} 44. Kb2 {[%clk 0:00:15]}  Kf4 {[%clk 0:00:06]} 45. Rdxd5 {[%clk 0:00:14]}  exd5 {[%clk 0:00:06]} 46. Rxd5 {[%clk 0:00:13]}  Kg4 {[%clk 0:00:06]} 47. Rd4+ {[%clk 0:00:12]}  Kg3 {[%clk 0:00:05]} 48. a4 {[%clk 0:00:12]}  Rf7 {[%clk 0:00:04]} 49. a5 {[%clk 0:00:12]}  Kf3 {[%clk 0:00:05]} 50. b4 {[%clk 0:00:12]}  Ke3 {[%clk 0:00:05]} 51. c3 {[%clk 0:00:12]} 1-0


[Site "https://www.chess.com"]